[Event "GER-ch Youth-U12 2022"]
[Site "Willingen"]
[Date "2022.06.09"]
[Round "7.4"]
[White "Neuhoff, Laertes"]
[Black "Lu, Yunong Elias"]
[Result "1/2-1/2"]
[ECO "B15"]
[WhiteElo "1990"]
[BlackElo "1671"]
[Annotator "TA"]
[PlyCount "100"]
[EventDate "2022.06.05"]
[EventType "swiss"]
[EventRounds "9"]
[EventCountry "GER"]
[SourceTitle "playchess.com"]
[Source "ChessBase"]
[SourceQuality "1"]
[TimeControl "40/4500+30:900+30"]

{[%evp 15,100,16,27,16,38,37,25,30,41,24,18,29,42,44,104,122,248,213,210,102,121,103,153,112,122,87,99,82,131,129,200,183,175,129,199,190,198,189,231,133,130,125,125,135,141,114,175,138,167,145,131,142,132,94,131,129,116,131,139,129,185,0,0,0,0,0,0,0,0,0,0,0,0,0,0,0,0,0,0,0,0,0,0,0,0,0,0]} 1. e4 {[%emt 0:00:00]} c6 {[%emt 0:00:00]} 2. d4 {[%emt 0:00:00]} d5 {[%emt 0:00:00]} 3. Nc3 {[%emt 0:00:00]} dxe4 {[%emt 0:00:00]} 4. Nxe4 {[%emt 0:00:00]} Nf6 {[%emt 0:00:00]} 5. Nxf6+ {[%emt 0:00:00]} exf6 {[%emt 0:00:00]} 6. c3 {[%emt 0:00:00]} Bd6 {[%emt 0:00:00]} 7. Bd3 {[%emt 0:00:00]} O-O {[%emt 0:00:00]} 8. Ne2 {[%emt 0:00:00]} Re8 {[%emt 0:00:00]} 9. Qc2 {[%emt 0:00:00] B15: Caro-Kann: 3 Nc3: 3...g6 and 3...dxe4 4 Nxe4 Nf6 5 Nxf6+ exf6.} h5 {[%emt 0:00:00]} 10. O-O {[%emt 0:00:00]} h4 {[%emt 0:00:00]} 11. h3 {[%emt 0:00:00] White has an edge.} Nd7 {[%emt 0:00:00]} 12. Bd2 {[%emt 0:00:00]} Nf8 {[%emt 0:02:42]} 13. Rae1 {[%emt 0:02:07]} Be6 {[%emt 0:05:35]} 14. f4 {[%emt 0:13:15][%cal Bf2f4,Bf4f5][%mdl 32] [#]} Qb6 $146 {[%emt 0:15:26]} (14... Bxa2 $2 15. b3 $18) (14... c5 $14) ({Predecessor:} 14... Qc7 15. f5 Bd7 16. c4 b6 17. b4 c5 18. dxc5 bxc5 19. b5 Nh7 20. Nc3 Ng5 {1-0 (45) Ivic,V (2582)-Bluebaum,M (2669) Krasnaya Polyana 2021}) 15. c4 $16 {[%emt 0:10:00]} c5 {[%emt 0:07:53]} (15... Bb8 $16) 16. f5 {[%emt 0:10:26]} Bd7 {[%emt 0:05:55] [#]} 17. d5 {[%emt 0:00:38]} (17. b4 $1 $18 {is the precise move to win.}) 17... Qc7 {[%emt 0:01:54]} 18. Nc3 {[%emt 0:11:56]} Bg3 {[%emt 0:15:09]} (18... Rxe1 $142 19. Bxe1 (19. Rxe1 Nh7 $16) 19... Bg3) 19. Rxe8 {[%emt 0:04:59]} Rxe8 {[%emt 0:04:54]} 20. Ne4 {[%emt 0:02:06]} Be5 {[%emt 0:02:39]} 21. Be1 {[%emt 0:02:13]} Bd4+ {[%emt 0:05:45]} (21... b5 $142) 22. Kh1 {[%emt 0:01:19]} a6 {[%emt 0:00:11]} (22... Bc8 $16 23. Bxh4 Nd7) 23. Bxh4 $18 {[%emt 0:02:27]} b5 {[%emt 0:00:58]} 24. Bg3 {[%emt 0:04:43]} (24. b3 $18) 24... Qb6 {[%emt 0:03:29]} (24... Be5 $16 {was worth a try.}) 25. b3 {[%emt 0:01:33][%cal Bb2b3,Bb3c4][%mdl 32]} bxc4 {[%emt 0:01:01]} 26. bxc4 {[%emt 0:00:14]} (26. Bxc4 Bb5 27. a4 Bxc4 28. bxc4 Nd7 $16) 26... Qa5 {[%emt 0:02:58]} 27. Rb1 {[%emt 0:02:38]} ({White should play} 27. Bf4 $18) 27... Bxf5 $16 {[%emt 0:02:57] [#]} 28. Nxf6+ $1 {[%emt 0:01:01][%mdl 512]} Bxf6 {[%emt 0:00:31]} 29. Bxf5 {[%emt 0:00:18]} g6 {[%emt 0:02:46]} 30. Bd3 {[%emt 0:01:12]} Qa3 {[%emt 0:02:44]} (30... Kg7 $16 31. Rb7 Re3) 31. Rb3 {[%emt 0:00:52]} Qa4 {[%emt 0:00:26]} 32. Qd2 {[%emt 0:04:17]} Qd7 {[%emt 0:01:14]} 33. Rb6 {[%emt 0:00:25][%csl LRa6,LRf6]} Bd4 {[%emt 0:00:30]} 34. Bf4 {[%emt 0:04:03]} ({Resist} 34. Rxa6 Qb7 35. Ra3 Nd7) 34... Qd8 {[%emt 0:01:12]} 35. Rb8 {[%emt 0:00:40] White is more active.} ({Don't play} 35. Rxa6 $6 Qh4 36. Kh2 Bc3 $11) 35... Qd7 {[%emt 0:00:28]} 36. Rxe8 {[%emt 0:00:27]} Qxe8 {[%emt 0:00:04]} 37. Qe2 {[%emt 0:00:28]} Qa4 {[%emt 0:01:31]} (37... Qd8 $16 38. g3 Nd7) 38. Be3 $2 {[%emt 0:05:23]} ({White should try} 38. h4 $18) 38... Bxe3 $11 {[%emt 0:00:43] The position is equal.} 39. Qxe3 {[%emt 0:00:01]} Qxa2 {[%emt 0:00:24]} 40. Qxc5 {[%emt 0:02:46][%mdl 4096] Endgame KQB-KQN} Qa1+ {[%emt 0:01:47]} 41. Kh2 {[%emt 0:17:17]} Qe5+ {[%emt 0:00:00]} 42. Kg1 {[%emt 0:00:00]} a5 {[%emt 0:00:00]} 43. Bf1 {[%emt 0:00:00]} a4 {[%emt 0:00:00]} 44. Qa7 {[%emt 0:00:00]} Kg7 {[%emt 0:00:00]} 45. Qxa4 {[%emt 0:00:00]} Qe3+ $1 {[%emt 0:00:00]} 46. Kh1 {[%emt 0:00:35] Qa1+ is the strong threat.} Qe1 {[%emt 0:00:00] Prevents Qa1+.} 47. Kg1 {[%emt 0:00:17] aiming for Qa3.} Qe3+ {[%emt 0:00:00]} 48. Kh2 {[%emt 0:00:18] Black must now prevent Qa1+.} Qf4+ {[%emt 0:00:00]} 49. Kg1 {[%emt 0:00:32] Strongly threatening Qa1+.} Qe3+ $1 {[%emt 0:00:00]} 50. Kh1 {[%emt 0:00:36] Hoping for Qa1+.} Qe1 {[%emt 0:00:00] Prevents Qa1+. White really could win this.  Weighted Error Value: White=0.20 (precise) /Black=0.17 (very precise)} 1/2-1/2

[Event "GER-ch Youth-U12 2022"]
[Site "Willingen"]
[Date "2022.06.09"]
[Round "7.5"]
[White "Wartenberg, Alexander"]
[Black "Malinowsky, Levi"]
[Result "0-1"]
[ECO "B41"]
[WhiteElo "1682"]
[BlackElo "1816"]
[Annotator "NA RC COMBH"]
[PlyCount "62"]
[EventDate "2022.06.05"]
[EventType "swiss"]
[EventRounds "9"]
[EventCountry "GER"]
[SourceTitle "playchess.com"]
[Source "ChessBase"]
[SourceQuality "1"]
[TimeControl "40/4500+30:900+30"]

1. e4 {[%emt 0:00:00]} c5 {[%emt 0:00:00]} 2. Nf3 {[%emt 0:00:00]} e6 {[%emt 0:00:00]} 3. d4 {[%emt 0:00:00]} cxd4 {[%emt 0:00:00]} 4. Nxd4 {[%emt 0:00:00]} a6 {[%emt 0:00:00]} 5. c4 {[%emt 0:00:00]} Nf6 {[%emt 0:00:00]} 6. Nc3 {[%emt 0:00:00]} Qc7 {[%emt 0:00:00]} 7. Bd3 {[%emt 0:00:00]} Be7 {[%emt 0:00:00]} 8. O-O {[%emt 0:00:00]} b6 {[%emt 0:00:00]} 9. Be3 {[%emt 0:00:00]} Bb7 {[%emt 0:00:00]} 10. Qb3 {[%emt 0:03:16]} Ng4 {[%emt 0:00:00]} 11. g3 {[%emt 0:07:42]} Nxe3 {[%emt 0:00:00]} 12. fxe3 {[%emt 0:00:10]} d6 {[%emt 0:00:00]} 13. Rf3 {[%emt 0:04:13]} Nd7 {[%emt 0:00:00]} 14. Raf1 {[%emt 0:04:48]} Bf6 {[%emt 0:03:23]} 15. Na4 {[%emt 0:03:16]} Bc6 {[%emt 0:05:20]} 16. R3f2 {[%emt 0:10:51]} O-O {[%emt 0:02:24]} 17. Nc3 {[%emt 0:01:10]} Rac8 {[%emt 0:03:08]} 18. Qc2 {[%emt 0:02:16]} Ne5 {[%emt 0:01:52]} 19. b3 {[%emt 0:00:55]} Ng4 {[%emt 0:07:42]} 20. Rxf6 {[%emt 0:14:51]} Nxf6 {[%emt 0:01:21]} 21. Qg2 {[%emt 0:00:18]} Nd7 {[%emt 0:00:54]} 22. Qh3 {[%emt 0:02:57]} Ne5 {[%emt 0:00:58]} 23. Bc2 {[%emt 0:00:14]} Bb7 {[%emt 0:03:49]} 24. Rf4 {[%emt 0:01:53]} b5 {[%emt 0:02:10]} 25. Rh4 {[%emt 0:00:20]} h6 {[%emt 0:00:41]} 26. Nce2 {[%emt 0:04:09]} bxc4 {[%emt 0:02:07]} 27. Nf4 {[%emt 0:00:42]} cxb3 {[%emt 0:01:49]} 28. Bxb3 {[%emt 0:00:47]} Qc1+ {[%emt 0:00:36]} 29. Kg2 {[%emt 0:00:05]} Bxe4+ {[%emt 0:00:15]} 30. Kf2 {[%emt 0:00:10]} Qd2+ {[%emt 0:00:26]} 31. Nde2 {[%emt 0:00:06]} Rc1 {[%emt 0:00:20]} 0-1

[Event "GER-ch Youth-U12 2022"]
[Site "Willingen"]
[Date "2022.06.09"]
[Round "7.6"]
[White "Aniol, Nico"]
[Black "Schuricht, Emil Frederick"]
[Result "0-1"]
[ECO "B13"]
[WhiteElo "1494"]
[BlackElo "1641"]
[Annotator "NA RC COMBH"]
[PlyCount "120"]
[EventDate "2022.06.05"]
[EventType "swiss"]
[EventRounds "9"]
[EventCountry "GER"]
[SourceTitle "playchess.com"]
[Source "ChessBase"]
[SourceQuality "1"]
[TimeControl "40/4500+30:900+30"]

1. e4 {[%emt 0:00:00]} c6 {[%emt 0:00:00]} 2. d4 {[%emt 0:00:00]} d5 {[%emt 0:00:00]} 3. exd5 {[%emt 0:00:00]} cxd5 {[%emt 0:00:00]} 4. c4 {[%emt 0:00:00]} Nf6 {[%emt 0:00:00]} 5. Nc3 {[%emt 0:00:00]} Nc6 {[%emt 0:00:00]} 6. Nf3 {[%emt 0:00:00]} Bg4 {[%emt 0:00:00]} 7. cxd5 {[%emt 0:00:00]} Nxd5 {[%emt 0:00:00]} 8. Qb3 {[%emt 0:00:00]} Bxf3 {[%emt 0:00:00]} 9. gxf3 {[%emt 0:01:10]} e6 {[%emt 0:00:00]} 10. Qxb7 {[%emt 0:02:16]} Nxd4 {[%emt 0:00:00]} 11. Bb5+ {[%emt 0:00:29]} Nxb5 {[%emt 0:00:00]} 12. Qc6+ {[%emt 0:00:40]} Ke7 {[%emt 0:00:00]} 13. Qc5+ {[%emt 0:03:00]} Qd6 {[%emt 0:00:00]} 14. Qxb5 {[%emt 0:01:20]} Qd7 {[%emt 0:00:00]} 15. Nxd5+ {[%emt 0:04:15]} exd5 {[%emt 0:00:00]} 16. Qxd7+ {[%emt 0:02:46]} Kxd7 {[%emt 0:00:00]} 17. O-O {[%emt 0:00:41]} Rc8 {[%emt 0:00:00]} 18. Rd1 {[%emt 0:01:42]} Ke6 {[%emt 0:00:00]} 19. Bf4 {[%emt 0:04:36]} Rc4 {[%emt 0:17:27]} 20. Re1+ {[%emt 0:03:46]} Kd7 {[%emt 0:00:48]} 21. Bg3 {[%emt 0:11:37]} Bd6 {[%emt 0:19:48]} 22. Re2 {[%emt 0:08:32]} Rhc8 {[%emt 0:15:15]} 23. Rd1 {[%emt 0:06:04]} R8c5 {[%emt 0:00:28]} 24. Red2 {[%emt 0:07:43]} Kc6 {[%emt 0:00:38]} 25. Rd3 {[%emt 0:03:25]} f5 {[%emt 0:03:05]} 26. Bxd6 {[%emt 0:04:13]} Kxd6 {[%emt 0:00:13]} 27. R1d2 {[%emt 0:00:27]} Rc2 {[%emt 0:04:33]} 28. b4 {[%emt 0:02:35]} Rc1+ {[%emt 0:01:33]} 29. Kg2 {[%emt 0:00:06]} Rb5 {[%emt 0:00:13]} 30. a4 {[%emt 0:00:11]} Rxb4 {[%emt 0:00:07]} 31. Rxd5+ {[%emt 0:00:03]} Ke6 {[%emt 0:01:08]} 32. Ra5 {[%emt 0:03:45]} Rc7 {[%emt 0:00:55]} 33. Ra6+ {[%emt 0:00:44]} Rb6 {[%emt 0:01:29]} 34. Re2+ {[%emt 0:01:07]} Kf6 {[%emt 0:06:59]} 35. Ra5 {[%emt 0:02:42]} g6 {[%emt 0:04:04]} 36. Rd2 {[%emt 0:04:36]} Rbc6 {[%emt 0:05:54]} 37. Rb2 {[%emt 0:02:10]} Rc5 {[%emt 0:01:02]} 38. Ra6+ {[%emt 0:01:49]} Ke5 {[%emt 0:00:37]} 39. Rb5 {[%emt 0:02:41]} Rxb5 {[%emt 0:00:30]} 40. axb5 {[%emt 0:00:06]} Rb7 {[%emt 0:00:29]} 41. Kg3 {[%emt 0:16:46]} Kd5 {[%emt 0:00:00]} 42. Rc6 {[%emt 0:00:00]} Rxb5 {[%emt 0:00:00]} 43. Rc7 {[%emt 0:00:00]} a5 {[%emt 0:00:00]} 44. Rxh7 {[%emt 0:00:00]} a4 {[%emt 0:00:00]} 45. Ra7 {[%emt 0:00:00]} Rb4 {[%emt 0:00:00]} 46. Ra6 {[%emt 0:00:00]} Kc4 {[%emt 0:04:01]} 47. Rxg6 {[%emt 0:00:00]} a3 {[%emt 0:01:36]} 48. Re6 {[%emt 0:00:00]} a2 {[%emt 0:04:59]} 49. Ra6 {[%emt 0:00:00]} Kb3 {[%emt 0:00:05]} 50. Rxa2 {[%emt 0:00:00]} Kxa2 {[%emt 0:00:04]} 51. h4 {[%emt 0:00:00]} Kb3 {[%emt 0:01:00]} 52. h5 {[%emt 0:00:00]} Kc3 {[%emt 0:02:11]} 53. h6 {[%emt 0:00:00]} Rb6 {[%emt 0:00:04]} 54. Kf4 {[%emt 0:00:00]} Rxh6 {[%emt 0:00:10]} 55. Kxf5 {[%emt 0:00:00]} Kd4 {[%emt 0:00:49]} 56. Kg4 {[%emt 0:00:00]} Ke5 {[%emt 0:00:29]} 57. f4+ {[%emt 0:00:00]} Kf6 {[%emt 0:00:06]} 58. Kf3 {[%emt 0:00:00]} Kf5 {[%emt 0:00:05]} 59. Ke3 {[%emt 0:00:00]} Rh3+ {[%emt 0:00:07]} 60. f3 {[%emt 0:00:00]} Rh2 {[%emt 0:00:15]} 0-1

[Event "GER-ch Youth-U12 2022"]
[Site "Willingen"]
[Date "2022.06.09"]
[Round "7.7"]
[White "Freude, Paul"]
[Black "Nemitz, Alfred"]
[Result "0-1"]
[ECO "C45"]
[WhiteElo "1415"]
[BlackElo "1611"]
[Annotator "NA RC COMBH"]
[PlyCount "48"]
[EventDate "2022.06.05"]
[EventType "swiss"]
[EventRounds "9"]
[EventCountry "GER"]
[SourceTitle "playchess.com"]
[Source "ChessBase"]
[SourceQuality "1"]
[TimeControl "40/4500+30:900+30"]

1. e4 {[%emt 0:00:00]} e5 {[%emt 0:00:00]} 2. Nf3 {[%emt 0:00:00]} Nc6 {[%emt 0:00:00]} 3. d4 {[%emt 0:00:00]} exd4 {[%emt 0:00:00]} 4. Nxd4 {[%emt 0:00:00]} Nf6 {[%emt 0:00:00]} 5. Nxc6 {[%emt 0:00:00]} bxc6 {[%emt 0:00:00]} 6. e5 {[%emt 0:00:00]} Qe7 {[%emt 0:00:00]} 7. Qe2 {[%emt 0:00:00]} Nd5 {[%emt 0:00:00]} 8. c4 {[%emt 0:00:00]} Ba6 {[%emt 0:00:00]} 9. b3 {[%emt 0:00:00]} g6 {[%emt 0:00:00]} 10. f4 {[%emt 0:00:00]} Bg7 {[%emt 0:00:00]} 11. Qf2 {[%emt 0:00:00]} Nb6 {[%emt 0:15:56]} 12. Ba3 {[%emt 0:00:00]} d6 {[%emt 0:04:51]} 13. Be2 {[%emt 0:03:09]} c5 {[%emt 0:00:25]} 14. Bf3 {[%emt 0:03:40]} Rd8 {[%emt 0:04:43]} 15. Bc6+ {[%emt 0:02:10]} Nd7 {[%emt 0:00:05]} 16. O-O {[%emt 0:01:42]} O-O {[%emt 0:00:36]} 17. Nd2 {[%emt 0:03:25]} g5 {[%emt 0:12:17]} 18. g3 {[%emt 0:04:29]} dxe5 {[%emt 0:04:00]} 19. Bxd7 {[%emt 0:02:46]} Qxd7 {[%emt 0:00:41]} 20. Ne4 {[%emt 0:06:10]} exf4 {[%emt 0:01:47]} 21. Rad1 {[%emt 0:01:59]} Qxd1 {[%emt 0:04:29]} 22. Rxd1 {[%emt 0:10:14]} Rxd1+ {[%emt 0:00:09]} 23. Kg2 {[%emt 0:01:18]} Bb7 {[%emt 0:00:08]} 24. Qc2 {[%emt 0:00:47]} Rd4 {[%emt 0:01:11]} 0-1

[Event "GER-ch Youth-U12 2022"]
[Site "Willingen"]
[Date "2022.06.09"]
[Round "7.8"]
[White "Polzin, Gustav"]
[Black "Sydykov Bayastan"]
[Result "0-1"]
[ECO "C06"]
[WhiteElo "1643"]
[BlackElo "1477"]
[Annotator "NA RC COMBH"]
[PlyCount "76"]
[EventDate "2022.06.05"]
[EventType "swiss"]
[EventRounds "9"]
[EventCountry "GER"]
[SourceTitle "playchess.com"]
[Source "ChessBase"]
[SourceQuality "1"]
[TimeControl "40/4500+30:900+30"]

1. e4 {[%emt 0:00:00]} e6 {[%emt 0:00:00]} 2. d4 {[%emt 0:00:00]} d5 {[%emt 0:00:00]} 3. Nd2 {[%emt 0:00:00]} Nf6 {[%emt 0:00:00]} 4. e5 {[%emt 0:00:00]} Nfd7 {[%emt 0:00:00]} 5. Bd3 {[%emt 0:00:00]} c5 {[%emt 0:00:00]} 6. c3 {[%emt 0:00:00]} b5 {[%emt 0:00:00]} 7. Ne2 {[%emt 0:00:00]} Qb6 {[%emt 0:00:00]} 8. Nf3 {[%emt 0:00:00]} Nc6 {[%emt 0:00:00]} 9. O-O {[%emt 0:02:12]} b4 {[%emt 0:00:00]} 10. Bc2 {[%emt 0:02:15]} Ba6 {[%emt 0:00:00]} 11. Be3 {[%emt 0:07:16]} Be7 {[%emt 0:00:00]} 12. Re1 {[%emt 0:01:46]} O-O {[%emt 0:00:00]} 13. Nf4 {[%emt 0:00:54]} bxc3 {[%emt 0:00:00]} 14. bxc3 {[%emt 0:00:29]} cxd4 {[%emt 0:00:00]} 15. cxd4 {[%emt 0:01:08]} Nb4 {[%emt 0:00:00]} 16. Bb1 {[%emt 0:01:47]} Rfc8 {[%emt 0:00:00]} 17. a3 {[%emt 0:01:21]} Nc6 {[%emt 0:00:00]} 18. h4 {[%emt 0:04:38]} Nf8 {[%emt 0:04:36]} 19. Nh5 {[%emt 0:06:25]} Ng6 {[%emt 0:10:39]} 20. g3 {[%emt 0:07:49]} Na5 {[%emt 0:04:54]} 21. Ng5 {[%emt 0:05:55]} Nc4 {[%emt 0:08:49]} 22. Qf3 {[%emt 0:03:56]} Rf8 {[%emt 0:01:18]} 23. Ra2 {[%emt 0:09:34]} Nxa3 {[%emt 0:08:36]} 24. Rxa3 {[%emt 0:00:31]} Qb4 {[%emt 0:02:32]} 25. Rc1 {[%emt 0:06:00]} Qxa3 {[%emt 0:01:59]} 26. Nxg7 {[%emt 0:00:10]} Kxg7 {[%emt 0:01:05]} 27. Nxe6+ {[%emt 0:00:12]} fxe6 {[%emt 0:02:42]} 28. Qh5 {[%emt 0:00:27]} Bd3 {[%emt 0:00:32]} 29. Bh6+ {[%emt 0:01:45]} Kh8 {[%emt 0:00:38]} 30. Bxd3 {[%emt 0:08:21]} Qxd3 {[%emt 0:00:52]} 31. g4 {[%emt 0:00:13]} Nf4 {[%emt 0:00:21]} 32. Bxf4 {[%emt 0:00:19]} Rxf4 {[%emt 0:00:10]} 33. Rc7 {[%emt 0:00:28]} Qd1+ {[%emt 0:00:23]} 34. Kg2 {[%emt 0:00:07]} Qf3+ {[%emt 0:00:13]} 35. Kg1 {[%emt 0:00:12]} Qxf2+ {[%emt 0:00:11]} 36. Kh1 {[%emt 0:00:05]} Qf1+ {[%emt 0:00:11]} 37. Kh2 {[%emt 0:00:15]} Rf2+ {[%emt 0:00:06]} 38. Kg3 {[%emt 0:00:02]} Qg2# {[%emt 0:00:12]} 0-1

[Event "GER-ch Youth-U12 2022"]
[Site "Willingen"]
[Date "2022.06.09"]
[Round "7.9"]
[White "Skembris, Simon Max"]
[Black "Blodig, Vincent"]
[Result "1-0"]
[ECO "B45"]
[WhiteElo "1413"]
[BlackElo "1461"]
[Annotator "NA RC COMBH"]
[PlyCount "63"]
[EventDate "2022.06.05"]
[EventType "swiss"]
[EventRounds "9"]
[EventCountry "GER"]
[SourceTitle "playchess.com"]
[Source "ChessBase"]
[SourceQuality "1"]
[TimeControl "40/4500+30:900+30"]

1. e4 {[%emt 0:00:00]} c5 {[%emt 0:00:00]} 2. Nf3 {[%emt 0:00:00]} e6 {[%emt 0:00:00]} 3. d4 {[%emt 0:00:00]} cxd4 {[%emt 0:00:00]} 4. Nxd4 {[%emt 0:00:00]} Nf6 {[%emt 0:00:00]} 5. Nc3 {[%emt 0:00:00]} Nc6 {[%emt 0:00:00]} 6. Ndb5 {[%emt 0:00:00]} Bb4 {[%emt 0:00:00]} 7. a3 {[%emt 0:00:00]} Bxc3+ {[%emt 0:00:00]} 8. Nxc3 {[%emt 0:00:00]} d5 {[%emt 0:00:00]} 9. exd5 {[%emt 0:00:00]} exd5 {[%emt 0:00:00]} 10. Bd3 {[%emt 0:00:00]} O-O {[%emt 0:00:00]} 11. O-O {[%emt 0:00:00]} Bg4 {[%emt 0:00:00]} 12. f3 {[%emt 0:00:00]} Bh5 {[%emt 0:00:00]} 13. Bg5 {[%emt 0:00:00]} Qb6+ {[%emt 0:00:00]} 14. Kh1 {[%emt 0:00:00]} Ne4 {[%emt 0:00:00]} 15. Nxe4 {[%emt 0:00:00]} dxe4 {[%emt 0:00:00]} 16. Bxe4 {[%emt 0:00:00]} Qxb2 {[%emt 0:00:00]} 17. Re1 {[%emt 0:02:47]} Bg6 {[%emt 0:00:00]} 18. Rb1 {[%emt 0:04:01]} Qc3 {[%emt 0:00:00]} 19. Bxg6 {[%emt 0:11:27]} hxg6 {[%emt 0:00:00]} 20. Rxb7 {[%emt 0:02:14]} Rfe8 {[%emt 0:00:00]} 21. Rg1 {[%emt 0:14:13]} Nd4 {[%emt 0:04:05]} 22. Qd3 {[%emt 0:06:13]} Rec8 {[%emt 0:10:36]} 23. Qxc3 {[%emt 0:07:16]} Rxc3 {[%emt 0:00:44]} 24. Rd1 {[%emt 0:01:50]} Ne6 {[%emt 0:03:33]} 25. h4 {[%emt 0:01:23]} f6 {[%emt 0:00:55]} 26. Rd6 {[%emt 0:03:40]} Nd8 {[%emt 0:03:22]} 27. Rxg7+ {[%emt 0:01:34]} Kf8 {[%emt 0:01:13]} 28. Bxf6 {[%emt 0:02:14]} Rxa3 {[%emt 0:00:27]} 29. Rh7 {[%emt 0:03:12]} a5 {[%emt 0:03:58]} 30. Rdd7 {[%emt 0:01:27]} Nf7 {[%emt 0:01:59]} 31. Rdxf7+ {[%emt 0:00:25]} Ke8 {[%emt 0:00:12]} 32. Re7+ {[%emt 0:00:06]} 1-0

[Event "GER-ch Youth-U12 2022"]
[Site "Willingen"]
[Date "2022.06.09"]
[Round "7.10"]
[White "Bangert, Jonas"]
[Black "Zhuikov, Edgard"]
[Result "0-1"]
[ECO "A57"]
[WhiteElo "1483"]
[BlackElo "1892"]
[Annotator "NA RC COMBH"]
[PlyCount "72"]
[EventDate "2022.06.05"]
[EventType "swiss"]
[EventRounds "9"]
[EventCountry "GER"]
[SourceTitle "playchess.com"]
[Source "ChessBase"]
[SourceQuality "1"]
[TimeControl "40/4500+30:900+30"]

1. d4 {[%emt 0:00:00]} Nf6 {[%emt 0:00:00]} 2. c4 {[%emt 0:00:00]} c5 {[%emt 0:00:00]} 3. d5 {[%emt 0:00:00]} b5 {[%emt 0:00:00]} 4. cxb5 {[%emt 0:00:00]} a6 {[%emt 0:00:00]} 5. f3 {[%emt 0:00:00]} axb5 {[%emt 0:00:00]} 6. e4 {[%emt 0:00:00]} d6 {[%emt 0:00:00]} 7. Bxb5+ {[%emt 0:00:00]} Bd7 {[%emt 0:00:00]} 8. Bc4 {[%emt 0:00:00]} g6 {[%emt 0:00:00]} 9. Ne2 {[%emt 0:00:00]} Bg7 {[%emt 0:00:00]} 10. O-O {[%emt 0:00:00]} O-O {[%emt 0:00:00]} 11. Nec3 {[%emt 0:00:00]} Qb6 {[%emt 0:00:00]} 12. a4 {[%emt 0:00:00]} Na6 {[%emt 0:00:00]} 13. b3 {[%emt 0:01:17]} Nb4 {[%emt 0:00:00]} 14. Bd2 {[%emt 0:12:32]} Rfb8 {[%emt 0:00:00]} 15. Na3 {[%emt 0:00:44]} Ne8 {[%emt 0:00:00]} 16. Rb1 {[%emt 0:00:28]} Nc7 {[%emt 0:00:00]} 17. Kh1 {[%emt 0:02:54]} Nba6 {[%emt 0:00:00]} 18. Qe2 {[%emt 0:02:00]} Ra7 {[%emt 0:00:00]} 19. Rfd1 {[%emt 0:09:52]} Bc8 {[%emt 0:00:00]} 20. Qe1 {[%emt 0:04:44]} Nb4 {[%emt 0:00:00]} 21. Rbc1 {[%emt 0:11:03]} Ba6 {[%emt 0:00:00]} 22. Bxa6 {[%emt 0:01:09]} Qxa6 {[%emt 0:00:00]} 23. Ncb5 {[%emt 0:10:52]} Nxb5 {[%emt 0:00:00]} 24. Nxb5 {[%emt 0:00:06]} Nd3 {[%emt 0:00:00]} 25. Qf1 {[%emt 0:02:59]} Nxc1 {[%emt 0:00:00]} 26. Rxc1 {[%emt 0:00:06]} Rab7 {[%emt 0:00:00]} 27. Bc3 {[%emt 0:00:50]} Rxb5 {[%emt 0:00:34]} 28. axb5 {[%emt 0:00:54]} Qxb5 {[%emt 0:00:34]} 29. Qxb5 {[%emt 0:00:47]} Rxb5 {[%emt 0:00:04]} 30. Bxg7 {[%emt 0:00:07]} Kxg7 {[%emt 0:00:03]} 31. Rc3 {[%emt 0:06:09]} Kf6 {[%emt 0:00:10]} 32. Kg1 {[%emt 0:00:32]} Ke5 {[%emt 0:00:08]} 33. Rd3 {[%emt 0:00:34]} Ra5 {[%emt 0:00:18]} 34. Kf2 {[%emt 0:02:19]} Ra2+ {[%emt 0:00:16]} 35. Kf1 {[%emt 0:00:06]} h5 {[%emt 0:00:37]} 36. h4 {[%emt 0:02:17]} Kf4 {[%emt 0:00:25]} 0-1